bitfinex-derivatives/quotes_BNBF0:USTF0_20250116
["timestamp","ask_amount","ask_price","bid_price","bid_amount"]
[1736987552687,3.06561641,710.48,708.8,6.29616704]
[1736987552893,3.06561641,710.47,708.81,2.77849341]
[1736987553085,1.86927922,710.46,708.81,2.77849341]
[1736987553289,1.86927922,710.45,708.81,2.77849341]
[1736987553487,1.86927922,710.44,708.89,1.04978181]
[1736987553691,1.86927922,710.43,708.89,1.04978181]
[1736987553889,1.86927922,710.42,708.89,1.04978181]
[1736987554195,1.86927922,710.41,708.89,1.04978181]
[1736987554396,1.12156848,710.4,708.97,1.04978181]
[1736987554695,1.12219372,710.39,708.97,1.04978181]
[1736987554895,1.12217912,710.38,708.97,1.04978181]
[1736987555091,0.28149586,710.49,708.97,1.04978181]
[1736987555395,3.06738363,710.48,708.97,1.04978181]
[1736987555589,1.87034619,710.47,708.97,1.04978181]
[1736987555793,1.12219779,710.46,708.97,1.04978181]
[1736987556094,1.87055634,710.45,708.98,2.77849341]
[1736987556294,1.87055634,710.44,709.01,1.04978181]
[1736987556493,1.87055634,710.43,709.01,1.04978181]
[1736987556692,1.87055634,710.42,709.01,1.04978181]
[1736987556895,1.87055634,710.41,709.01,1.04978181]
[1736987557196,1.87055634,710.4,709.0,1.04978181]
[1736987557395,1.87055634,710.39,709.01,0.28208346]
[1736987557594,1.87055634,710.38,709.01,0.28208346]
[1736987557789,0.28149586,710.49,709.01,0.28208346]
[1736987557790,1.12219779,710.37,709.02,2.78314762]
[1736987557997,1.12219779,710.36,709.03,0.28207551]
[1736987558196,1.12219779,710.35,709.03,0.28207551]
[1736987558391,0.28149586,710.49,709.03,0.28207551]
[1736987558592,3.07227734,710.48,709.03,0.28207551]
[1736987558797,3.07227734,710.47,709.03,0.28207551]
[1736987558999,3.07227734,710.46,709.03,0.28207551]
[1736987559202,1.87334205,710.45,709.03,0.28207551]
[1736987559395,1.87334205,710.44,709.03,0.28207551]
[1736987559600,1.87334205,710.43,709.03,0.28207551]
[1736987559800,1.87334205,710.42,709.03,0.28207551]
[1736987559997,1.87334205,710.41,709.03,1.33185732]
[1736987560300,1.87334205,710.4,709.03,1.33185732]
[1736987560500,1.87334205,710.39,709.03,1.33185732]
[1736987560704,1.87334205,710.38,709.03,0.28207551]
[1736987561002,1.87334205,710.37,709.03,0.28207551]
[1736987561203,1.87334205,710.36,709.03,0.28207551]
[1736987561399,1.87334205,710.35,709.03,0.28207551]
[1736987561601,1.87414587,710.34,709.03,0.28207551]
[1736987561801,1.12400749,710.33,709.03,0.28207551]
[1736987561999,0.28149586,710.49,709.03,0.28207551]
[1736987562304,3.07559888,710.48,709.03,0.28207551]
[1736987562506,3.07559888,710.47,709.03,0.28207551]
[1736987562706,1.87537025,710.46,709.03,0.28207551]
[1736987562909,0.28149586,710.49,709.03,0.28207551]
[1736987563507,1.03834794,710.78,709.03,0.28207551]
[1736987563807,3.07767174,710.77,709.03,0.28207551]
[1736987564006,3.07767174,710.76,709.03,0.28207551]
[1736987564307,3.07767174,710.75,709.04,2.78681948]
[1736987564602,1.87664777,710.74,709.17,1.04978181]
[1736987564805,1.87664569,710.73,709.17,1.04978181]
[1736987565019,1.12600779,710.72,709.17,1.04978181]
[1736987565206,1.03834794,711.04,709.17,1.04978181]
[1736987565402,3.07702734,711.03,709.17,1.04978181]
[1736987565602,3.07702734,711.03,709.03,0.28207551]
[1736987565603,3.07702734,711.02,709.38,1.04978181]
[1736987565908,3.07702734,711.01,709.38,1.04978181]
[1736987566108,3.07702734,711.0,709.38,1.04978181]
[1736987566308,1.24601753,711.64,709.18,2.78681948]
[1736987566309,3.07702734,710.99,709.29,1.04978181]
[1736987566508,3.07702734,710.98,709.29,1.04978181]
[1736987566707,3.07702734,710.97,709.29,1.04978181]
[1736987566907,3.07702734,710.96,709.29,1.04978181]
[1736987567111,1.87626681,710.95,709.24,1.04978181]
[1736987567408,1.87626681,710.94,709.24,1.04978181]
[1736987567604,1.87626681,710.93,709.24,1.04978181]
[1736987567806,1.87626681,710.92,709.25,2.78123044]
[1736987568007,1.87626681,710.91,709.25,2.78123044]
[1736987568209,1.03834794,711.52,709.25,3.56723044]
[1736987568408,0.28109627,711.5,709.25,3.56723044]
[1736987568608,3.33112231,711.49,709.25,3.56723044]
[1736987568807,3.33112231,711.48,709.25,3.56723044]
[1736987569110,3.33112231,711.47,709.26,2.78123044]
[1736987569311,3.0726484,711.46,709.26,2.78123044]
[1736987569513,3.33111635,711.45,709.26,2.78123044]
[1736987569711,3.33111635,711.44,709.26,2.78123044]
[1736987569910,3.33111635,711.43,709.26,2.78123044]
[1736987570113,3.33111635,711.42,709.26,2.78123044]
[1736987570312,3.33111635,711.41,709.25,0.786]
[1736987570510,3.32975618,711.4,709.25,0.786]
[1736987570710,3.32975618,711.39,709.25,0.786]
[1736987570911,3.32975618,711.38,709.25,0.786]
[1736987571211,3.32768324,711.37,709.25,0.786]
[1736987571412,3.32768324,711.36,709.25,4.083]
[1736987571612,3.32768324,711.35,709.25,4.083]
[1736987571912,3.32768324,711.34,709.25,4.083]
[1736987572112,0.28109627,711.5,709.25,4.083]
[1736987572113,3.06921529,711.33,709.25,4.083]
[1736987572407,3.3252874,711.32,709.25,4.083]
[1736987572605,0.28109627,711.5,709.25,4.083]
[1736987572606,3.3252874,711.31,709.25,4.083]
[1736987572809,3.3252874,711.3,709.27,0.28198006]
[1736987573006,3.3252874,711.29,709.27,0.28198006]
[1736987573211,3.3252874,711.28,709.27,0.28198006]
[1736987573411,3.3252874,711.27,709.27,0.28198006]
[1736987573713,3.60647852,711.26,709.27,0.28198006]
[1736987573914,0.28119903,711.24,709.27,0.28198006]
[1736987574215,3.3252874,711.23,709.27,0.28198006]
[1736987574415,3.60649434,711.22,709.27,0.28198006]
[1736987574713,3.60649829,711.21,709.27,0.28198006]
[1736987574915,3.60650224,711.2,709.27,0.28198006]
[1736987575109,3.3252874,711.19,709.27,0.28198006]
[1736987575310,3.3252874,711.18,709.27,0.28198006]
[1736987575613,3.3252874,711.17,709.27,0.28198006]
[1736987575811,3.3252874,711.16,709.27,0.28198006]
[1736987576007,3.06676394,711.15,709.27,0.28198006]
[1736987576209,3.32527483,711.14,709.27,0.28198006]
[1736987576413,3.06574072,711.13,709.28,2.77309082]
[1736987576615,3.06574072,711.12,709.28,2.77309082]
[1736987576917,3.06574072,711.11,709.28,2.77309082]
[1736987577113,3.06574072,711.1,709.3,0.28196813]
[1736987577318,1.8689845,711.09,709.3,0.28196813]
[1736987577512,1.8689845,711.08,709.3,0.28196813]
[1736987577715,1.8689845,711.07,709.3,0.28196813]
[1736987577912,1.8689845,711.06,709.3,0.28196813]
[1736987578116,1.12101187,711.05,709.3,0.28196813]
[1736987578412,0.28121484,711.2,709.3,0.28196813]
[1736987578615,3.06361087,711.19,709.3,0.28196813]
[1736987578815,3.06363867,711.18,709.3,2.09996813]
[1736987579014,3.06363867,711.17,709.3,2.09996813]
[1736987579216,3.06363867,711.16,709.3,2.09996813]
[1736987579419,1.86810873,711.15,709.3,3.22696813]
[1736987579619,1.86810873,711.14,709.3,3.22696813]
[1736987579816,1.86810873,711.13,709.3,3.22696813]
[1736987580015,1.86810873,711.12,709.3,3.22696813]
[1736987580213,1.86810873,711.11,709.3,3.22696813]
[1736987580420,1.86775195,711.1,709.3,3.22696813]
[1736987580625,1.86775195,711.09,709.3,4.01296813]
[1736987580817,1.86775195,711.08,709.3,4.01296813]
[1736987581020,3.06280119,711.07,709.3,4.01296813]
[1736987581220,3.32134573,711.06,709.3,4.01296813]
[1736987581422,3.32134573,711.05,709.3,4.01296813]
[1736987581615,3.32064051,711.04,709.3,4.01296813]
[1736987581817,3.32064051,711.03,709.3,4.01296813]
[1736987582119,3.32064051,711.02,709.3,4.01296813]
[1736987582314,3.06209597,711.01,709.3,4.01296813]
[1736987582521,3.06209597,711.0,709.3,4.01296813]
[1736987582725,3.06209597,710.99,709.3,4.01296813]
[1736987582914,3.06209597,710.98,709.3,4.01296813]
[1736987583121,3.06209597,710.97,709.3,4.01296813]
[1736987583322,3.06209597,710.96,709.3,4.01296813]
[1736987583519,3.06209597,710.95,709.3,4.01296813]
[1736987583723,3.06209597,710.94,709.3,4.01296813]
[1736987583918,1.86729583,710.93,709.3,4.01296813]
[1736987584119,3.06174345,710.92,709.3,4.01296813]
[1736987584324,3.06174345,710.91,709.3,4.01296813]
[1736987584530,3.06174345,710.9,709.3,4.01296813]
[1736987584722,1.86729583,710.89,709.3,4.01296813]
[1736987584922,1.86729583,710.88,709.3,4.01296813]
[1736987585122,1.86729583,710.87,709.3,4.01296813]
[1736987585427,0.74675009,710.86,709.3,4.01296813]
[1736987585630,1.86653275,710.85,709.3,4.01296813]
[1736987585823,0.28121484,711.2,709.3,4.01296813]
[1736987586022,3.31933604,711.19,709.3,4.01296813]
[1736987586228,3.60055879,711.18,709.3,4.01296813]
[1736987586427,3.60056275,711.17,709.3,4.01296813]
[1736987586627,3.6005667,711.16,709.3,4.01296813]
[1736987586829,3.60057065,711.15,709.3,4.01296813]
[1736987587127,3.60057461,711.14,709.3,4.01296813]
[1736987587329,3.60057856,711.13,709.3,4.01296813]
[1736987587623,3.31930977,711.12,709.3,4.01296813]
[1736987587826,3.31930977,711.11,709.3,4.01296813]
[1736987588026,3.60057076,711.1,709.3,4.01296813]
[1736987588228,3.31931637,711.09,709.3,4.01296813]
[1736987588528,0.28125439,711.1,709.3,4.01296813]
[1736987588529,3.31931637,711.08,709.3,4.01296813]
[1736987588726,3.31931637,711.07,709.3,4.01296813]
[1736987588922,3.06077023,711.06,709.3,4.01296813]
[1736987589230,3.06077023,711.05,709.3,4.01296813]
[1736987589426,3.06077023,711.04,709.3,4.01296813]
[1736987589627,3.06077023,711.03,709.3,4.01296813]
[1736987589824,3.06077023,711.02,709.3,4.01296813]
[1736987590026,3.06077023,711.01,709.3,4.01296813]
[1736987590226,0.28125439,711.1,709.3,4.01296813]
[1736987590227,3.06077023,711.0,709.3,4.01296813]
[1736987590525,1.86633605,710.99,709.3,6.16896813]
[1736987590728,1.86633605,710.98,709.3,6.16896813]
[1736987590923,1.86633605,710.97,709.3,6.16896813]
[1736987591128,1.86633605,710.96,709.3,6.16896813]
[1736987591426,0.28125439,711.1,709.3,6.16896813]
[1736987591427,0.74652136,710.95,709.3,6.16896813]
[1736987591623,0.28125439,711.1,709.3,6.16896813]
[1736987591826,3.06038744,711.09,709.3,6.16896813]
[1736987592025,1.86611738,711.08,709.3,6.16896813]
[1736987592225,3.0603447,711.07,709.3,6.16896813]
[1736987592530,1.86611738,711.06,709.3,6.16896813]
[1736987592831,1.86611738,711.05,709.3,6.16896813]
[1736987593031,1.86611738,711.04,709.3,6.16896813]
[1736987593331,1.86594238,711.03,709.3,6.16896813]
[1736987593631,1.86594238,711.02,709.3,6.16896813]
[1736987593825,0.28125439,711.1,709.3,6.16896813]
[1736987594035,3.06017035,711.09,709.3,6.16896813]
[1736987594232,3.06017035,711.08,709.3,6.16896813]
[1736987594432,3.06017035,711.07,709.3,6.16896813]
[1736987594731,3.06017035,711.06,709.3,6.16896813]
[1736987594933,3.06017035,711.05,709.3,6.16896813]
[1736987595132,3.06017035,711.04,709.3,6.16896813]
[1736987595333,3.06017035,711.03,709.3,6.16896813]
[1736987595533,0.28125439,711.1,709.3,6.16896813]
[1736987595534,3.06017035,711.02,709.3,6.16896813]
[1736987595734,3.06017035,711.01,709.3,6.16896813]
[1736987595937,3.06017035,711.0,709.3,6.16896813]
[1736987596133,3.31875753,710.99,709.3,6.16896813]
[1736987596331,3.3187755,710.98,709.3,6.16896813]
[1736987596534,3.60008132,710.97,709.3,6.16896813]
[1736987596829,3.3187755,710.96,709.3,6.16896813]
[1736987597032,3.3187755,710.95,709.3,6.16896813]
[1736987597231,3.3187755,710.94,709.3,6.16896813]
[1736987597429,3.60015153,710.93,709.3,6.16896813]
[1736987597630,1.03834794,710.91,709.3,6.16896813]
[1736987597832,3.31882989,710.9,709.3,6.16896813]
[1736987598034,3.31882989,710.89,709.3,6.16896813]
[1736987598236,3.31882989,710.88,709.3,6.16896813]
[1736987598438,1.03834794,710.84,709.3,6.16896813]
[1736987598634,3.0603434,710.83,709.3,6.16896813]
[1736987598835,3.0603434,710.82,709.3,6.16896813]
[1736987599037,3.0603434,710.81,709.3,6.16896813]
[1736987599233,1.11962054,710.8,709.3,6.16896813]
[1736987599535,3.06059093,710.79,709.3,6.16896813]
[1736987599736,3.06059093,710.78,709.3,6.16896813]
[1736987599930,3.06059093,710.77,709.3,6.16896813]
[1736987600132,1.86614761,710.76,709.3,6.16896813]
[1736987600330,1.86614761,710.75,709.3,6.16896813]
[1736987600533,1.03834794,710.88,709.3,6.16896813]
[1736987600534,1.86614761,710.74,709.3,6.16896813]
[1736987600733,1.86614761,710.73,709.3,6.16896813]
[1736987600931,1.86614761,710.72,709.3,6.16896813]
[1736987601237,1.86623475,710.71,709.3,6.16896813]
[1736987601437,1.03834794,710.89,709.3,6.16896813]
[1736987601438,1.86623475,710.7,709.3,6.16896813]
[1736987601639,1.86623475,710.69,709.3,6.16896813]
[1736987601835,1.86622516,710.68,709.3,6.16896813]
[1736987602030,1.11962054,710.67,709.3,6.16896813]
[1736987602231,1.12002958,710.66,709.3,6.16896813]
[1736987602435,1.03834794,710.92,709.3,6.16896813]
[1736987602737,3.06141188,710.91,709.3,6.16896813]
[1736987602938,3.06141188,710.9,709.3,6.16896813]
[1736987603137,3.06141188,710.89,709.3,6.16896813]
[1736987603435,3.06196373,710.88,709.3,6.16896813]
[1736987603638,3.06196373,710.87,709.3,6.16896813]
[1736987603837,3.06196373,710.86,709.3,6.16896813]
[1736987604138,3.06196373,710.85,709.3,6.16896813]
[1736987604339,3.06196373,710.84,709.3,6.16896813]
[1736987604539,3.06196373,710.83,709.3,6.16896813]
[1736987604735,3.06196373,710.82,709.3,6.16896813]
[1736987604939,3.06196373,710.81,709.3,6.16896813]
[1736987605137,3.06196373,710.8,709.3,6.16896813]
[1736987605337,3.06196373,710.79,709.3,6.16896813]
[1736987605539,3.06196373,710.78,709.3,6.16896813]
[1736987605737,1.86706868,710.77,709.3,6.16896813]
[1736987605934,1.12025927,710.76,709.3,6.16896813]
[1736987606136,1.12025927,710.75,709.3,6.16896813]
[1736987606342,1.12025927,710.74,709.3,6.16896813]
[1736987606541,0.28132164,710.93,709.3,6.16896813]
[1736987606843,3.06391569,710.92,709.3,6.16896813]
[1736987607038,1.03834794,711.37,709.3,6.16896813]
[1736987607039,3.34524525,710.91,709.3,6.16896813]
[1736987607241,3.34524921,710.9,709.3,6.16896813]
[1736987607541,3.34525316,710.89,709.3,6.16896813]
[1736987607744,3.34525712,710.88,709.3,6.16896813]
[1736987607944,0.69512131,711.87,709.3,6.16896813]
[1736987607945,2.1496014,710.87,709.3,6.16896813]
[1736987608141,1.86825601,710.86,709.3,6.16896813]
[1736987608337,1.86825601,710.85,709.3,6.16896813]
[1736987608536,1.86825601,710.84,709.3,6.16896813]
[1736987608740,1.86825601,710.83,709.3,6.16896813]
[1736987608943,1.86825601,710.82,709.3,6.16896813]
[1736987609143,1.86943786,710.81,709.3,6.16896813]
[1736987609338,1.12215056,710.8,709.3,6.16896813]
[1736987609543,1.87031303,710.79,709.3,6.16896813]
[1736987609745,1.12230979,710.78,709.3,6.16896813]
[1736987609941,0.28134539,710.87,709.3,6.16896813]
[1736987610245,1.87033721,710.86,709.3,6.16896813]
[1736987610445,1.87033721,710.85,709.3,6.16896813]
[1736987610643,0.28134539,710.87,709.3,6.16896813]
[1736987610644,1.87033721,710.84,709.3,6.16896813]
[1736987610843,1.87033721,710.83,709.3,6.16896813]
[1736987611144,0.28134539,710.87,709.3,6.16896813]
[1736987611340,1.87159465,710.86,709.3,6.16896813]
[1736987611546,1.87159465,710.85,709.3,6.16896813]
[1736987611850,1.87159465,710.84,709.3,6.16896813]
[1736987612045,1.87159465,710.83,709.3,6.16896813]
[1736987612243,1.87159465,710.82,709.3,6.16896813]
[1736987612441,1.87159465,710.81,709.3,6.16896813]
[1736987612641,1.87159465,710.8,709.3,6.16896813]
[1736987612844,1.87159465,710.79,709.3,6.16896813]
[1736987613041,1.87159465,710.78,709.3,6.16896813]
[1736987613345,1.87207486,710.77,709.3,6.16896813]
[1736987613548,1.87207486,710.76,709.3,6.16896813]
[1736987613747,1.87207486,710.75,709.3,6.16896813]
[1736987613944,3.07067083,710.74,709.3,6.16896813]
[1736987614247,1.87207486,710.73,709.3,6.16896813]
[1736987614450,3.07098317,710.72,709.3,6.16896813]
[1736987614651,1.87207486,710.71,709.3,6.16896813]
[1736987614951,1.87207486,710.7,709.3,6.16896813]
[1736987615252,1.87207486,710.69,709.3,6.16896813]
[1736987615451,1.87207486,710.68,709.3,6.16896813]
[1736987615650,1.87207486,710.67,709.3,6.16896813]
[1736987615853,1.87207486,710.66,709.3,6.16896813]
[1736987616049,1.87207486,710.65,709.3,6.16896813]
[1736987616250,1.12297415,710.64,709.34,1.04978181]
[1736987616445,1.12297415,710.63,709.34,1.04978181]
[1736987616653,1.12297415,710.62,709.34,1.04978181]
[1736987616846,0.28134539,710.87,709.35,0.28194826]
[1736987617050,3.073717,710.86,709.35,0.28194826]
[1736987617253,3.073717,710.85,709.35,0.28194826]
[1736987617455,3.07430142,710.84,709.35,0.28194826]
[1736987617655,3.07430142,710.83,709.35,3.78594826]
[1736987617850,3.07430142,710.82,709.35,6.14294826]
[1736987618050,3.07430142,710.81,709.35,6.14294826]
[1736987618251,3.07430142,710.8,709.35,6.14294826]
[1736987618451,3.07430142,710.79,709.35,6.14294826]
[1736987618750,3.07430142,710.78,709.35,6.14294826]
[1736987618950,3.07430142,710.77,709.35,6.14294826]
[1736987619154,3.07430142,710.76,709.35,6.14294826]
[1736987619349,3.07511201,710.75,709.35,6.14294826]
[1736987619554,1.8744596,710.74,709.35,6.14294826]
[1736987619754,1.8744596,710.73,709.35,6.14294826]
[1736987619950,1.8744596,710.72,709.35,6.14294826]
[1736987620151,0.28134539,710.87,709.35,6.14294826]
[1736987620347,3.07791659,710.86,709.35,6.14294826]
[1736987620552,0.28134539,710.87,709.35,6.14294826]
[1736987620553,3.07791659,710.85,709.35,6.14294826]
[1736987620751,3.07791659,710.84,709.35,6.14294826]
[1736987620949,1.87680384,710.83,709.35,6.14294826]
[1736987621251,1.87680384,710.82,709.35,6.14294826]
[1736987621450,1.87680384,710.81,709.35,6.14294826]
[1736987621648,1.87680384,710.8,709.35,6.14294826]
[1736987621855,0.28134539,710.87,709.35,6.14294826]
[1736987621856,1.87680384,710.79,709.35,6.14294826]
[1736987622053,1.87680384,710.78,709.35,6.14294826]
[1736987622250,1.87680384,710.77,709.35,6.14294826]
[1736987622449,1.87680384,710.76,709.35,6.14294826]
[1736987622655,3.07850883,710.75,709.35,6.14294826]
[1736987622856,3.07928017,710.74,709.35,7.53494826]
[1736987623156,3.07928017,710.73,709.35,7.53494826]
[1736987623356,3.07928017,710.72,709.35,7.53494826]
[1736987623556,0.28134539,710.87,709.35,7.53494826]
[1736987623557,3.07928017,710.71,709.35,7.53494826]
[1736987623758,3.07928017,710.7,709.35,7.53494826]
[1736987623958,3.07928017,710.69,709.35,7.53494826]
[1736987624156,3.07928017,710.68,709.35,7.53494826]
[1736987624359,1.87762902,710.67,709.35,7.53494826]
[1736987624557,1.87762902,710.66,709.35,7.53494826]
[1736987624758,3.07915748,710.65,709.35,7.53494826]
[1736987624951,1.87756876,710.64,709.35,7.53494826]
[1736987625154,1.87756876,710.63,709.35,7.53494826]
[1736987625357,1.87756876,710.62,709.35,7.53494826]
[1736987625557,1.87756876,710.61,709.35,7.53494826]
[1736987625856,1.87756876,710.6,709.35,7.53494826]
[1736987626159,1.87756876,710.59,709.35,7.53494826]
[1736987626355,1.87756876,710.58,709.35,7.53494826]
[1736987626556,1.87756876,710.57,709.35,7.53494826]
[1736987626860,1.87756876,710.56,709.35,7.53494826]
[1736987627159,1.12659705,710.55,709.35,7.53494826]
[1736987627359,0.28134539,710.87,709.35,7.53494826]
[1736987627657,3.07938209,710.86,709.35,7.53494826]
[1736987627861,3.07938209,710.85,709.35,7.53494826]
[1736987628065,3.07938209,710.84,709.35,7.53494826]
[1736987628255,3.07938209,710.83,709.35,7.53494826]
[1736987628459,3.07938209,710.82,709.35,7.53494826]
[1736987628663,3.07938209,710.81,709.35,7.53494826]
[1736987628959,3.07938209,710.8,709.35,7.53494826]
[1736987629156,1.8776892,710.79,709.35,7.53494826]
[1736987629356,1.8776892,710.78,709.35,7.53494826]
[1736987629557,1.8776892,710.77,709.35,7.53494826]
[1736987629763,1.8776892,710.76,709.35,7.53494826]
[1736987630063,0.28134539,710.87,709.46,1.04978181]
[1736987630264,1.8793771,710.86,709.46,1.04978181]
[1736987630459,0.28134539,710.87,709.46,1.04978181]
[1736987631058,0.28134539,710.87,709.52,1.04978181]
[1736987631265,1.87956813,710.86,709.52,1.04978181]
[1736987631566,1.87948604,710.85,709.52,1.83578181]
[1736987631865,3.08222416,710.84,709.52,1.83578181]
[1736987632161,3.08222416,710.83,709.52,0.786]
[1736987632367,3.08222416,710.82,709.52,0.786]
[1736987632561,3.08222416,710.81,709.52,0.786]
[1736987632759,3.08222416,710.8,709.59,1.04978181]
[1736987633065,3.08222416,710.79,709.59,1.04978181]
[1736987633264,3.08222416,710.78,709.59,1.04978181]
[1736987633460,3.08222416,710.77,709.59,1.04978181]
[1736987633661,1.87948604,710.76,709.59,1.04978181]
[1736987633865,1.87948604,710.75,709.52,1.913]
[1736987634164,1.87948604,710.74,709.52,1.913]
[1736987634365,1.87948604,710.73,709.52,1.913]
[1736987634564,1.87948604,710.72,709.52,1.913]
[1736987634761,0.28134539,710.87,709.52,3.64]
[1736987634963,3.08213739,710.86,709.52,3.64]
[1736987635164,1.87937381,710.85,709.53,0.28187673]
[1736987635364,1.87937381,710.84,709.53,0.28187673]
[1736987635666,1.87937381,710.83,709.53,0.28187673]
[1736987635866,1.87937381,710.82,709.53,0.28187673]
[1736987636069,1.87937381,710.81,709.53,0.28187673]
[1736987636263,3.08224519,710.8,709.53,0.28187673]
[1736987636468,3.08224519,710.79,709.53,0.28187673]
[1736987636665,3.08224519,710.78,709.53,0.28187673]
[1736987636967,3.08224519,710.77,709.53,0.28187673]
[1736987637159,3.08224519,710.76,709.53,0.28187673]
[1736987637364,0.28134539,710.87,709.53,0.28187673]
[1736987637365,1.95459862,710.75,709.53,0.28187673]
[1736987637565,3.08243083,710.74,709.53,0.28187673]
[1736987637761,3.08243083,710.73,709.53,0.28187673]
[1736987637961,3.08243083,710.72,709.53,0.28187673]
[1736987638161,3.08243083,710.71,709.53,0.28187673]
[1736987638367,3.08243083,710.7,709.53,0.28187673]
[1736987638569,3.08243083,710.69,709.53,0.28187673]
[1736987638765,3.08243083,710.68,709.53,0.28187673]
[1736987639074,1.31969333,710.87,709.53,0.28187673]
[1736987639075,3.08243083,710.67,709.53,0.28187673]
[1736987639370,3.08243083,710.66,709.53,0.28187673]
[1736987639570,3.08243083,710.65,709.53,0.28187673]
[1736987639771,3.08243083,710.64,709.53,0.28187673]
[1736987640071,3.08243083,710.63,709.53,0.28187673]
[1736987640270,3.08243083,710.62,709.53,0.28187673]
[1736987640470,3.08243083,710.61,709.53,0.28187673]
[1736987640665,3.08243083,710.6,709.53,0.28187673]
[1736987640866,3.08292267,710.59,709.53,0.28187673]
[1736987641065,3.08292267,710.58,709.53,0.28187673]
[1736987641268,3.08292267,710.57,709.53,0.28187673]
[1736987641471,3.08292267,710.56,709.53,0.28187673]
[1736987641772,3.08292267,710.55,709.53,0.28187673]
[1736987641972,3.08292267,710.54,709.53,0.28187673]
[1736987642172,3.08292267,710.53,709.53,0.28187673]
[1736987642368,3.08292267,710.52,709.53,0.28187673]
[1736987642570,3.08292267,710.51,709.53,0.28187673]
[1736987642765,3.08292267,710.5,709.53,0.28187673]
[1736987642970,3.08292267,710.49,709.53,0.28187673]
[1736987643172,3.08292267,710.48,709.53,0.28187673]
[1736987643372,1.03834794,710.64,709.53,0.28187673]
[1736987643373,3.08292267,710.47,709.53,0.28187673]
[1736987643571,3.08292267,710.46,709.53,0.28187673]
[1736987643773,0.28134539,710.87,709.53,0.28187673]
[1736987643774,1.87979008,710.45,709.53,0.28187673]
[1736987644074,1.87979008,710.44,709.53,0.28187673]
[1736987644368,1.87979008,710.43,709.53,0.28187673]
[1736987644571,1.87979008,710.42,709.53,0.28187673]
[1736987644775,1.87893858,710.41,709.53,0.28187673]
[1736987644972,1.87893858,710.4,709.53,0.28187673]
[1736987645269,1.87893416,710.39,709.53,0.28187673]
[1736987645468,1.12645824,710.38,709.53,0.28187673]
[1736987645672,1.03834794,710.8,709.53,0.28187673]
[1736987645872,3.61908427,710.79,709.53,0.28187673]
[1736987646074,3.61908823,710.78,709.53,0.28187673]
[1736987646273,3.61909219,710.77,709.53,0.28187673]
[1736987646475,3.61909615,710.76,709.53,0.28187673]
[1736987646675,1.24601753,711.31,709.53,0.28187673]
[1736987646676,3.61910011,710.75,709.53,0.28187673]
[1736987646975,3.61910407,710.74,709.53,0.28187673]
[1736987647170,3.33770722,710.73,709.53,0.28187673]
[1736987647369,3.61911199,710.72,709.53,0.28187673]
[1736987647676,3.61911595,710.71,709.53,0.28187673]
[1736987647875,3.36042441,710.7,709.53,3.20887673]
[1736987648074,3.61914136,710.69,709.53,3.20887673]
[1736987648274,3.61914532,710.68,709.53,3.20887673]
[1736987648476,3.61914928,710.67,709.53,3.20887673]
[1736987648674,3.33772471,710.66,709.53,3.20887673]
[1736987648877,3.33772471,710.65,709.53,2.927]
[1736987649072,3.33772471,710.64,709.53,2.927]
[1736987649275,3.33772471,710.63,709.53,2.927]
[1736987649473,3.33772471,710.62,709.53,2.927]
[1736987649672,3.33772471,710.61,709.53,2.927]
[1736987649874,3.33772471,710.6,709.53,2.927]
[1736987650072,2.21125233,710.59,709.53,2.927]
[1736987650273,3.33656815,710.58,709.53,2.927]
[1736987650480,3.33656815,710.57,709.53,2.927]
[1736987650771,3.33656815,710.56,709.53,4.054]
[1736987650977,3.07785516,710.55,709.53,4.054]
[1736987651171,3.33659525,710.54,709.53,4.054]
[1736987651371,3.33658939,710.53,709.53,4.054]
[1736987651573,3.33658939,710.52,709.53,4.054]
[1736987651878,3.07785516,710.51,709.53,4.054]
[1736987652077,3.33658946,710.5,709.53,5.181]
[1736987652279,3.07484469,710.49,709.53,5.181]
[1736987652478,3.07484469,710.48,709.53,5.181]
[1736987652680,3.07484469,710.47,709.53,5.181]
[1736987652879,3.07484469,710.46,709.53,5.181]
[1736987653087,3.07484469,710.45,709.53,5.968]
[1736987653281,3.07484469,710.44,709.53,5.968]
[1736987653481,3.07484469,710.43,709.53,5.968]
[1736987653682,0.28142457,710.67,709.53,5.968]
[1736987653683,3.07484469,710.42,709.53,5.968]
[1736987653882,3.07484469,710.41,709.53,5.968]
[1736987654076,3.07484469,710.4,709.53,5.968]
[1736987654280,3.07484469,710.39,709.53,5.968]
[1736987654483,3.07484469,710.38,709.53,5.968]
[1736987654685,3.07484469,710.37,709.53,5.968]
[1736987654883,3.07484469,710.36,709.53,5.968]
[1736987655085,3.07484469,710.35,709.53,5.968]
[1736987655280,1.87490231,710.34,709.53,5.968]
[1736987655482,1.87490231,710.33,709.53,5.968]
[1736987655679,0.28142457,710.67,709.53,5.968]
[1736987655680,1.87490231,710.32,709.53,5.968]
[1736987655981,0.28142457,710.67,709.53,5.968]
[1736987655982,1.87490231,710.31,709.53,5.968]
[1736987656183,1.87490231,710.3,709.53,5.968]
[1736987656383,1.87490231,710.29,709.53,5.968]